[Event "WYCC U16 Girls 2019"]
[Site "Mumbai"]
[Date "2019.10.11"]
[Round "10.9"]
[White "Lakshmi C"]
[Black "Mehendi Sil"]
[Result "1/2-1/2"]
[ECO "B10"]
[WhiteElo "1859"]
[BlackElo "1812"]
[Annotator "NA"]
[PlyCount "101"]
[EventDate "2019.10.02"]
[EventType "swiss"]
[EventCountry "IND"]
[SourceTitle "playchess.com"]
[Source "ChessBase"]
[SourceQuality "1"]
[TimeControl "5400+30"]

1. e4 {[%emt 0:00:00]} c6 {[%emt 0:00:00]} 2. Nc3 {[%emt 0:00:09]} d5 {[%emt 0:00:15]} 3. Nf3 {[%emt 0:00:29]} Nf6 {[%emt 0:00:49]} 4. exd5 {[%emt 0:04:00]} cxd5 {[%emt 0:01:41]} 5. d4 {[%emt 0:00:18]} Bg4 {[%emt 0:06:59]} 6. Be2 {[%emt 0:06:29]} Nc6 {[%emt 0:08:22]} 7. O-O {[%emt 0:01:43]} e6 {[%emt 0:03:25]} 8. Bf4 {[%emt 0:09:21]} Be7 {[%emt 0:05:16]} 9. Ne5 {[%emt 0:09:52]} Bxe2 {[%emt 0:05:21]} 10. Nxe2 {[%emt 0:00:45]} O-O {[%emt 0:02:43]} 11. h3 {[%emt 0:04:05]} Qb6 {[%emt 0:10:31]} 12. Rb1 {[%emt 0:02:00]} Rac8 {[%emt 0:04:56]} 13. a3 {[%emt 0:04:44]} Nxe5 {[%emt 0:03:58]} 14. Bxe5 {[%emt 0:03:34]} Nd7 {[%emt 0:03:59]} 15. Bg3 {[%emt 0:00:45]} Bd6 {[%emt 0:09:57]} 16. Kh1 {[%emt 0:01:09]} Bxg3 {[%emt 0:02:30]} 17. Nxg3 {[%emt 0:01:41]} Qc7 {[%emt 0:03:25]} 18. c3 {[%emt 0:00:21]} f5 {[%emt 0:04:15]} 19. f4 {[%emt 0:08:03]} Nf6 {[%emt 0:01:36]} 20. Ne2 {[%emt 0:07:31]} Ne4 {[%emt 0:00:38]} 21. Rf3 {[%emt 0:00:19]} Qe7 {[%emt 0:02:13]} 22. Qe1 {[%emt 0:03:49]} Kh8 {[%emt 0:01:32]} 23. Ng3 {[%emt 0:02:40]} Rg8 {[%emt 0:02:31]} 24. Nxe4 {[%emt 0:02:07]} fxe4 {[%emt 0:00:36]} 25. Rf2 {[%emt 0:00:27]} Rcf8 {[%emt 0:01:02]} 26. Qe3 {[%emt 0:00:21]} g5 {[%emt 0:07:54]} 27. fxg5 {[%emt 0:01:44]} Rxf2 {[%emt 0:00:18]} 28. Qxf2 {[%emt 0:00:02]} Qxg5 {[%emt 0:00:18]} 29. Rf1 {[%emt 0:01:36]} Qg3 {[%emt 0:00:54]} 30. Qf6+ {[%emt 0:18:45]} Qg7 {[%emt 0:00:32]} 31. g4 {[%emt 0:01:37]} Qxf6 {[%emt 0:01:18]} 32. Rxf6 {[%emt 0:00:06]} Rg6 {[%emt 0:00:23]} 33. Rf4 {[%emt 0:04:55]} Kg7 {[%emt 0:02:33]} 34. Kg2 {[%emt 0:00:20]} h5 {[%emt 0:02:36]} 35. Kg3 {[%emt 0:00:42]} b5 {[%emt 0:01:04]} 36. Rf2 {[%emt 0:00:52]} hxg4 {[%emt 0:00:11]} 37. hxg4 {[%emt 0:00:04]} a5 {[%emt 0:00:21]} 38. Rf1 {[%emt 0:00:47]} Rf6 {[%emt 0:00:20]} 39. Re1 {[%emt 0:00:43]} Rf3+ {[%emt 0:00:10]} 40. Kh4 {[%emt 0:00:31]} Rf2 {[%emt 0:00:33]} 41. a4 {[%emt 0:00:31]} Rxb2 {[%emt 0:00:13]} 42. axb5 {[%emt 0:00:19]} Rxb5 {[%emt 0:00:09]} 43. Ra1 {[%emt 0:00:35]} Rb3 {[%emt 0:01:05]} 44. Rxa5 {[%emt 0:00:09]} Rxc3 {[%emt 0:00:12]} 45. Kg5 {[%emt 0:00:00]} Rc7 {[%emt 0:00:00]} 46. Ra6 {[%emt 0:00:00]} Re7 {[%emt 0:00:00]} 47. Kf4 {[%emt 0:00:00]} Kf6 {[%emt 0:00:00]} 48. g5+ {[%emt 0:00:00]} Kg6 {[%emt 0:00:00]} 49. Kg4 {[%emt 0:00:00]} Kf7 50. Kf4 Rb7 51. Ke5 1/2-1/2

[Event "WYCC U16 Girls 2019"]
[Site "Mumbai"]
[Date "2019.10.11"]
[Round "10.10"]
[White "Achaya Vijayan"]
[Black "Maione, Melissa"]
[Result "1-0"]
[ECO "D35"]
[WhiteElo "1585"]
[BlackElo "1912"]
[Annotator "NA"]
[PlyCount "117"]
[EventDate "2019.10.02"]
[EventType "swiss"]
[EventCountry "IND"]
[SourceTitle "playchess.com"]
[Source "ChessBase"]
[SourceQuality "1"]
[TimeControl "5400+30"]

1. d4 d5 2. c4 e6 3. Nc3 Nf6 4. cxd5 exd5 5. Bg5 Be7 6. e3 c6 7. Qc2 O-O 8. Bd3 Nbd7 9. Nge2 Re8 10. O-O Nf8 11. f3 Be6 12. Rae1 Ng6 13. Ng3 Qd7 14. f4 Ne4 15. Bxe7 Nxg3 16. hxg3 Nxe7 17. f5 Bxf5 18. Bxf5 Nxf5 19. Qxf5 Qc7 20. Rf3 g6 21. Qf4 Qe7 22. Qf6 Qf8 23. Ref1 Re7 24. Nd1 Rae8 25. b3 Rd7 26. Qh4 Re4 27. Rf4 Rde7 28. Qg4 Qe8 29. Qf3 R4e6 30. Re1 a6 31. Kf2 Kg7 32. Nb2 h6 33. Nd3 g5 34. Rf5 f6 35. g4 b6 36. Qh3 Re4 37. Rh1 Qg6 38. Re1 a5 39. Qh5 Qxh5 40. gxh5 Rh4 41. Rc1 Re6 42. b4 Rxh5 43. bxa5 bxa5 44. Rc5 Kg6 45. Rf3 Rh1 46. Rxa5 Ra1 47. Ra6 Rb1 48. a4 Rb3 49. Nc5 Rb2+ 50. Kg3 Rd6 51. Rf2 Rb4 52. a5 Rb5 53. Ra2 Rb8 54. Rb6 Ra8 55. a6 h5 56. a7 h4+ 57. Kh2 g4 58. Rb8 Rd8 59. Rxd8 1-0

[Event "WYCC U16 Girls 2019"]
[Site "Mumbai"]
[Date "2019.10.11"]
[Round "10.11"]
[White "Maciulaityte, Barbora"]
[Black "Jain Nityata"]
[Result "0-1"]
[ECO "B12"]
[WhiteElo "1682"]
[BlackElo "2029"]
[Annotator "NA"]
[PlyCount "84"]
[EventDate "2019.10.02"]
[EventType "swiss"]
[EventCountry "IND"]
[SourceTitle "playchess.com"]
[Source "ChessBase"]
[SourceQuality "1"]
[TimeControl "5400+30"]

1. e4 c6 2. d4 d5 3. e5 Bf5 4. Nf3 e6 5. Be2 Ne7 6. O-O Ng6 7. a4 c5 8. c3 Nc6 9. Na3 Rc8 10. Qb3 Qd7 11. Be3 Be7 12. Rfc1 O-O 13. Qd1 Bg4 14. Nc2 Bxf3 15. Bxf3 Na5 16. Ne1 c4 17. Ra2 Nb3 18. Rb1 f6 19. exf6 Bxf6 20. Nc2 Ne7 21. Na1 Nxa1 22. Raxa1 Nc6 23. Qd2 Na5 24. Bd1 Qc6 25. Bc2 e5 26. dxe5 Bxe5 27. Rd1 Rcd8 28. Qe2 Qc7 29. Qh5 g6 30. Qh3 Nc6 31. g3 Qf7 32. f4 d4 33. cxd4 Bxd4 34. Bxd4 Nxd4 35. Qg2 Rfe8 36. Re1 Qf6 37. Be4 Nb3 38. Rad1 Kg7 39. Bd5 Rxe1+ 40. Rxe1 Qd4+ 41. Kh1 Qxd5 42. Re7+ Kf6 0-1

[Event "WYCC U16 Girls 2019"]
[Site "Mumbai"]
[Date "2019.10.11"]
[Round "10.12"]
[White "Lesbekova, Asel"]
[Black "Noshin, Anjum"]
[Result "1/2-1/2"]
[ECO "C44"]
[WhiteElo "2013"]
[BlackElo "1793"]
[Annotator "NA"]
[PlyCount "91"]
[EventDate "2019.10.02"]
[EventType "swiss"]
[EventCountry "IND"]
[SourceTitle "playchess.com"]
[Source "ChessBase"]
[SourceQuality "1"]
[TimeControl "5400+30"]

1. e4 {[%emt 0:00:00]} e5 {[%emt 0:00:00]} 2. Nf3 {[%emt 0:00:00]} Nc6 {[%emt 0:00:00]} 3. d4 {[%emt 0:00:41]} exd4 {[%emt 0:00:00]} 4. Nxd4 {[%emt 0:00:07]} Bb4+ {[%emt 0:00:00]} 5. c3 {[%emt 0:00:47]} Bc5 {[%emt 0:00:07]} 6. Nxc6 {[%emt 0:01:34]} bxc6 {[%emt 0:01:12]} 7. Bd3 {[%emt 0:00:32]} Nf6 {[%emt 0:02:05]} 8. O-O {[%emt 0:01:36]} O-O {[%emt 0:01:34]} 9. Bg5 {[%emt 0:09:55]} Be7 {[%emt 0:04:04]} 10. Qc2 {[%emt 0:06:31]} h6 {[%emt 0:03:21]} 11. Bh4 {[%emt 0:00:50]} d5 {[%emt 0:02:22]} 12. Nd2 {[%emt 0:01:10]} Nd7 {[%emt 0:10:36]} 13. Bxe7 {[%emt 0:05:59]} Qxe7 {[%emt 0:00:09]} 14. exd5 {[%emt 0:00:15]} cxd5 {[%emt 0:00:34]} 15. Nf3 {[%emt 0:09:53]} Qf6 {[%emt 0:07:33]} 16. Rfe1 {[%emt 0:05:44]} Nc5 {[%emt 0:08:49]} 17. b4 {[%emt 0:01:05]} Ne6 {[%emt 0:05:26]} 18. Bf5 {[%emt 0:07:08]} Ng5 {[%emt 0:02:13]} 19. Nd4 {[%emt 0:00:22]} g6 {[%emt 0:05:36]} 20. Bd3 {[%emt 0:06:35]} Bd7 {[%emt 0:04:06]} 21. Re3 {[%emt 0:02:15]} Rae8 {[%emt 0:06:30]} 22. Rae1 {[%emt 0:01:12]} Re5 {[%emt 0:02:46]} 23. R3e2 Rxe2 24. Rxe2 {[%emt 0:01:37]} Re8 {[%emt 0:01:29]} 25. Rxe8+ {[%emt 0:00:57]} Bxe8 {[%emt 0:00:07]} 26. Qe2 {[%emt 0:02:22]} Bd7 {[%emt 0:03:31]} 27. Qe3 {[%emt 0:01:09]} Kg7 {[%emt 0:05:55]} 28. Ne2 {[%emt 0:01:15]} Bf5 {[%emt 0:02:40]} 29. h4 {[%emt 0:04:56]} Ne6 {[%emt 0:02:52]} 30. Bxf5 {[%emt 0:01:02]} Qxf5 {[%emt 0:00:16]} 31. Nd4 {[%emt 0:01:53]} Qb1+ {[%emt 0:06:33]} 32. Kh2 {[%emt 0:00:20]} Qxa2 {[%emt 0:06:36]} 33. Qe5+ {[%emt 0:00:18]} Kh7 {[%emt 0:01:52]} 34. Nxe6 {[%emt 0:01:44]} fxe6 {[%emt 0:00:07]} 35. Qxc7+ {[%emt 0:04:23]} Kg8 {[%emt 0:00:45]} 36. f3 {[%emt 0:03:10]} Qf2 {[%emt 0:00:57]} 37. Qe7 {[%emt 0:02:10]} Qe1 {[%emt 0:02:21]} 38. Qf6 {[%emt 0:01:39]} Kh7 {[%emt 0:00:09]} 39. Qe7+ {[%emt 0:03:46]} Kg8 {[%emt 0:00:34]} 40. Kh3 {[%emt 0:00:53]} Qh1+ {[%emt 0:01:38]} 41. Kg3 {[%emt 0:00:23]} Qe1+ {[%emt 0:00:11]} 42. Kg4 {[%emt 0:03:50]} Qxc3 {[%emt 0:02:51]} 43. Qxe6+ {[%emt 0:01:41]} Kg7 {[%emt 0:00:00]} 44. Qe7+ {[%emt 0:00:00]} Kg8 {[%emt 0:00:00]} 45. Qe8+ {[%emt 0:00:00]} Kg7 {[%emt 0:00:00]} 46. Qe7+ {[%emt 0:00:00]} 1/2-1/2

[Event "WYCC U16 Girls 2019"]
[Site "Mumbai"]
[Date "2019.10.12"]
[Round "11.1"]
[White "Beydullayeva, Govhar"]
[Black "Nurgali, Nazerke"]
[Result "1-0"]
[ECO "D37"]
[WhiteElo "2289"]
[BlackElo "2194"]
[Annotator "ChessBase"]
[PlyCount "119"]
[EventDate "2019.10.02"]
[EventType "swiss"]
[EventCountry "IND"]
[SourceTitle "playchess.com"]
[Source "ChessBase"]
[SourceQuality "1"]
[TimeControl "5400+30"]

1. d4 {[%emt 0:00:00]} d5 {[%emt 0:00:00]} 2. c4 {[%emt 0:00:00]} e6 {[%emt 0:00:00]} 3. Nf3 {[%emt 0:00:00]} Nf6 {[%emt 0:00:04]} 4. Nc3 {[%emt 0:00:20]} Be7 {[%emt 0:00:25]} 5. Bf4 {[%emt 0:00:10]} O-O {[%emt 0:00:25]} 6. e3 {[%emt 0:00:24]} b6 {[%emt 0:00:38]} 7. Bd3 {[%emt 0:00:27]} Bb7 {[%emt 0:00:47]} 8. cxd5 {[%emt 0:01:38]} exd5 {[%emt 0:00:52]} 9. O-O {[%emt 0:00:45]} c5 {[%emt 0:00:29]} 10. Ne5 {[%emt 0:00:44]} Na6 {[%emt 0:03:41]} 11. Qf3 {[%emt 0:09:37]} Nc7 {[%emt 0:01:33]} 12. Bf5 {[%emt 0:14:24]} Nce8 {[%emt 0:06:24]} 13. Bg5 {[%emt 0:10:56]} g6 {[%emt 0:02:18]} 14. Bc2 {[%emt 0:05:40]} Ng7 {[%emt 0:05:14]} 15. Ba4 {[%emt 0:07:52]} Ne4 {[%emt 0:03:06]} 16. Bxe7 {[%emt 0:00:40]} Qxe7 {[%emt 0:00:06]} 17. Rfd1 {[%emt 0:04:42]} Ng5 {[%emt 0:03:15]} 18. Qe2 {[%emt 0:01:17]} Rac8 {[%emt 0:09:23]} 19. Nd3 {[%emt 0:06:34]} Rfd8 20. Nf4 {[%emt 0:04:41]} c4 {[%emt 0:07:09]} 21. f3 {[%emt 0:02:47]} a6 {[%emt 0:00:32]} 22. a3 {[%emt 0:00:38]} N5e6 {[%emt 0:02:07]} 23. Nxe6 {[%emt 0:01:02]} Nxe6 {[%emt 0:00:05]} 24. Qf2 {[%emt 0:00:33]} Qf6 {[%emt 0:03:23]} 25. Bc2 {[%emt 0:02:14]} b5 {[%emt 0:00:20]} 26. Rd2 {[%emt 0:02:32]} Nc7 {[%emt 0:03:34]} 27. e4 {[%emt 0:01:49]} dxe4 {[%emt 0:00:33]} 28. fxe4 {[%emt 0:02:28]} Qxf2+ {[%emt 0:00:05]} 29. Kxf2 {[%emt 0:00:05]} a5 {[%emt 0:00:08]} 30. d5 {[%emt 0:02:27]} b4 {[%emt 0:00:50]} 31. Na4 {[%emt 0:00:57]} Nb5 {[%emt 0:03:03]} 32. axb4 {[%emt 0:02:56]} axb4 {[%emt 0:00:07]} 33. Nb6 {[%emt 0:01:55]} Rc7 {[%emt 0:01:47]} 34. e5 {[%emt 0:04:57]} c3 {[%emt 0:02:20]} 35. bxc3 {[%emt 0:00:31]} Nxc3 {[%emt 0:00:09]} 36. d6 {[%emt 0:01:55]} Rc5 {[%emt 0:01:57]} 37. Ra7 {[%emt 0:04:02]} Bc6 {[%emt 0:00:12]} 38. Rc7 {[%emt 0:01:02]} b3 {[%emt 0:01:31]} 39. Bxb3 {[%emt 0:00:26]} Ne4+ {[%emt 0:00:04]} 40. Ke3 {[%emt 0:00:28]} Nxd2 {[%emt 0:00:22]} 41. Kxd2 {[%emt 0:00:00]} Rb8 {[%emt 0:00:00]} 42. Bxf7+ {[%emt 0:00:00]} Kf8 {[%emt 0:00:00]} 43. d7 {[%emt 0:00:00]} Rd8 {[%emt 0:00:00]} 44. e6 {[%emt 0:00:00]} Ke7 {[%emt 0:00:00]} 45. Ke3 {[%emt 0:00:00]} Rc2 {[%emt 0:00:00]} 46. h4 {[%emt 0:00:00]} Rc3+ {[%emt 0:00:36]} 47. Kf4 {[%emt 0:00:00]} Rc5 {[%emt 0:00:32]} 48. Nc8+ {[%emt 0:00:01]} Kf6 {[%emt 0:00:07]} 49. Rxc6 {[%emt 0:01:43]} Rxc6 {[%emt 0:03:07]} 50. e7 {[%emt 0:00:04]} Rcxc8 {[%emt 0:00:19]} 51. dxc8=Q {[%emt 0:00:43]} Rxc8 {[%emt 0:00:06]} 52. e8=Q Rxe8 {[%emt 0:00:04]} 53. Bxe8 {[%emt 0:00:09]} Ke7 {[%emt 0:00:28]} 54. Ba4 {[%emt 0:00:06]} Kf6 {[%emt 0:00:23]} 55. Bc2 {[%emt 0:01:33]} Kg7 {[%emt 0:01:35]} 56. Kg5 {[%emt 0:00:14]} h6+ {[%emt 0:00:07]} 57. Kf4 {[%emt 0:00:03]} Kf6 {[%emt 0:00:07]} 58. Bd3 {[%emt 0:00:17]} Kg7 {[%emt 0:00:34]} 59. Ke5 {[%emt 0:00:13]} Kf7 {[%emt 0:00:08]} 60. g3 {[%emt 0:00:09]} 1-0

[Event "WYCC U16 Girls 2019"]
[Site "Mumbai"]
[Date "2019.10.12"]
[Round "11.2"]
[White "Garifullina, Leya"]
[Black "Demchenko, Svitlana"]
[Result "1/2-1/2"]
[ECO "B48"]
[WhiteElo "2330"]
[BlackElo "1953"]
[Annotator "ChessBase"]
[PlyCount "90"]
[EventDate "2019.10.02"]
[EventType "swiss"]
[EventCountry "IND"]
[SourceTitle "playchess.com"]
[Source "ChessBase"]
[SourceQuality "1"]
[TimeControl "5400+30"]

1. e4 {[%emt 0:00:00]} c5 {[%emt 0:00:00]} 2. Nf3 {[%emt 0:00:00]} e6 {[%emt 0:00:00]} 3. d4 {[%emt 0:00:00]} cxd4 {[%emt 0:00:00]} 4. Nxd4 {[%emt 0:00:00]} Nc6 {[%emt 0:00:05]} 5. Nc3 {[%emt 0:00:08]} Qc7 {[%emt 0:00:08]} 6. Be3 {[%emt 0:00:06]} a6 {[%emt 0:00:24]} 7. Qd2 {[%emt 0:00:11]} Nf6 {[%emt 0:00:13]} 8. f4 {[%emt 0:00:19]} Bb4 {[%emt 0:00:25]} 9. Bd3 {[%emt 0:00:17]} b5 {[%emt 0:00:10]} 10. a3 {[%emt 0:02:35]} Be7 {[%emt 0:00:08]} 11. Nxc6 {[%emt 0:00:23]} dxc6 {[%emt 0:00:13]} 12. e5 {[%emt 0:00:15]} Ng4 {[%emt 0:00:25]} 13. Ne4 {[%emt 0:00:20]} Nxe3 {[%emt 0:00:25]} 14. Qxe3 {[%emt 0:00:04]} c5 {[%emt 0:00:20]} 15. Nd6+ {[%emt 0:00:07]} Bxd6 {[%emt 0:01:00]} 16. exd6 {[%emt 0:00:04]} Qxd6 {[%emt 0:00:56]} 17. O-O-O {[%emt 0:00:09]} Qc7 {[%emt 0:03:14]} 18. Be4 {[%emt 0:00:23]} Rb8 {[%emt 0:01:54]} 19. f5 {[%emt 0:00:09]} Bb7 {[%emt 0:26:56]} 20. Bxb7 {[%emt 0:09:15]} Rxb7 {[%emt 0:00:23]} 21. fxe6 {[%emt 0:02:57]} O-O {[%emt 0:00:07]} 22. Rd7 {[%emt 0:03:31]} Qc8 {[%emt 0:01:02]} 23. Rhd1 {[%emt 0:02:24]} fxe6 {[%emt 0:01:14]} 24. Qxe6+ {[%emt 0:08:19]} Kh8 {[%emt 0:00:54]} 25. Qe7 {[%emt 0:05:41]} Rxd7 {[%emt 0:00:30]} 26. Rxd7 {[%emt 0:00:08]} Rg8 {[%emt 0:00:51]} 27. g4 {[%emt 0:01:44]} Qc6 {[%emt 0:04:14]} 28. g5 {[%emt 0:01:16]} Qh1+ {[%emt 0:01:14]} 29. Rd1 {[%emt 0:00:07]} Qxh2 {[%emt 0:08:25]} 30. Qxc5 {[%emt 0:00:36]} Re8 {[%emt 0:01:35]} 31. Kb1 {[%emt 0:05:52]} Qh5 {[%emt 0:09:15]} 32. Qd5 {[%emt 0:08:27]} Rf8 {[%emt 0:05:31]} 33. Qd6 {[%emt 0:03:14]} Re8 {[%emt 0:05:12]} 34. Rg1 {[%emt 0:04:01]} Qg6 {[%emt 0:01:46]} 35. Qc5 {[%emt 0:03:47]} Kg8 {[%emt 0:04:15]} 36. Rd1 {[%emt 0:06:11]} h6 {[%emt 0:04:00]} 37. gxh6 {[%emt 0:00:55]} Qxh6 {[%emt 0:00:02]} 38. Rd6 {[%emt 0:02:19]} Qh1+ {[%emt 0:00:21]} 39. Ka2 {[%emt 0:00:05]} Qb7 {[%emt 0:00:16]} 40. Rc6 {[%emt 0:03:37]} Qf7+ {[%emt 0:04:14]} 41. b3 {[%emt 0:00:19]} Re6 {[%emt 0:00:53]} 42. Rc7 {[%emt 0:01:23]} Qg6 {[%emt 0:00:54]} 43. Qd5 {[%emt 0:04:54]} Kh7 {[%emt 0:01:34]} 44. Rc3 {[%emt 0:00:55]} Qe4 {[%emt 0:04:28]} 45. Qg5 {[%emt 0:06:45]} Re5 {[%emt 0:02:37]} 1/2-1/2

[Event "WYCC U16 Girls 2019"]
[Site "Mumbai"]
[Date "2019.10.12"]
[Round "11.3"]
[White "Bulatova, Kamaliya"]
[Black "Zhang, Xiao"]
[Result "1/2-1/2"]
[ECO "A45"]
[WhiteElo "2181"]
[BlackElo "2053"]
[Annotator "ChessBase"]
[PlyCount "201"]
[EventDate "2019.10.02"]
[EventType "swiss"]
[EventCountry "IND"]
[SourceTitle "playchess.com"]
[Source "ChessBase"]
[SourceQuality "1"]
[TimeControl "5400+30"]

1. d4 {[%emt 0:00:00]} Nf6 {[%emt 0:00:00]} 2. Bf4 {[%emt 0:00:00]} d5 {[%emt 0:00:00]} 3. e3 {[%emt 0:00:00]} c5 {[%emt 0:00:00]} 4. c3 {[%emt 0:00:00]} Nc6 {[%emt 0:00:00]} 5. Nd2 {[%emt 0:00:00]} Bf5 {[%emt 0:01:00]} 6. Qb3 {[%emt 0:00:00]} Qb6 {[%emt 0:00:50]} 7. dxc5 {[%emt 0:00:13]} Qxb3 {[%emt 0:00:12]} 8. axb3 {[%emt 0:00:03]} e5 {[%emt 0:06:40]} 9. Bg3 {[%emt 0:00:10]} Bxc5 {[%emt 0:01:19]} 10. Ngf3 {[%emt 0:01:17]} Bd6 {[%emt 0:14:12]} 11. Bb5 {[%emt 0:03:17]} Nd7 {[%emt 0:01:36]} 12. O-O {[%emt 0:03:38]} Ke7 {[%emt 0:06:27]} 13. b4 {[%emt 0:13:14]} a6 {[%emt 0:05:47]} 14. Be2 {[%emt 0:01:27]} h5 {[%emt 0:06:30]} 15. Nh4 {[%emt 0:08:47]} Kf6 16. Nxf5 {[%emt 0:10:32]} Kxf5 {[%emt 0:13:25]} 17. e4+ {[%emt 0:00:31]} dxe4 {[%emt 0:01:48]} 18. Nxe4 {[%emt 0:02:33]} Kxe4 {[%emt 0:11:53]} 19. Rad1 {[%emt 0:02:51]} Rh6 {[%emt 0:04:35]} 20. Bd3+ {[%emt 0:07:03]} Kd5 {[%emt 0:00:03]} 21. Bf5+ {[%emt 0:00:06]} Kc4 {[%emt 0:01:12]} 22. Bxd7 {[%emt 0:01:34]} Bc7 {[%emt 0:03:56]} 23. f4 {[%emt 0:05:21]} h4 {[%emt 0:02:26]} 24. Bf2 {[%emt 0:01:51]} exf4 {[%emt 0:00:23]} 25. Bg4 {[%emt 0:03:51]} Kb3 {[%emt 0:02:14]} 26. Rd2 {[%emt 0:07:59]} Rd8 {[%emt 0:00:25]} 27. Bd1+ {[%emt 0:00:22]} Ka2 {[%emt 0:00:52]} 28. Rc2 {[%emt 0:01:39]} Rhd6 {[%emt 0:01:00]} 29. Rc1 {[%emt 0:04:25]} Kxb2 {[%emt 0:03:12]} 30. Ba4 {[%emt 0:01:55]} Rd2 {[%emt 0:00:29]} 31. b5 {[%emt 0:04:37]} axb5 {[%emt 0:05:30]} 32. Rb1+ {[%emt 0:00:51]} Kxc3 {[%emt 0:03:25]} 33. Rb3+ {[%emt 0:05:09]} Kc4 {[%emt 0:00:25]} 34. Rc1+ {[%emt 0:00:58]} Kd5 {[%emt 0:00:05]} 35. Rxb5+ {[%emt 0:00:02]} Ke6 {[%emt 0:00:57]} 36. Rxb7 {[%emt 0:00:07]} Ne5 {[%emt 0:01:04]} 37. Rbxc7 {[%emt 0:03:06]} h3 {[%emt 0:02:31]} 38. Re1 {[%emt 0:05:36]} Kf6 {[%emt 0:01:25]} 39. Rf1 {[%emt 0:03:17]} hxg2 {[%emt 0:00:33]} 40. Kxg2 {[%emt 0:00:15]} Ng4 {[%emt 0:00:25]} 41. Kg1 {[%emt 0:00:00]} Rxf2 {[%emt 0:00:00]} 42. Rxf2 {[%emt 0:00:00]} Nxf2 {[%emt 0:00:00]} 43. Kxf2 {[%emt 0:00:00]} Rd2+ {[%emt 0:00:00]} 44. Kg1 {[%emt 0:00:00]} Re2 {[%emt 0:00:00]} 45. Bb3 {[%emt 0:00:00]} Re7 {[%emt 0:00:00]} 46. Rc5 {[%emt 0:00:00]} g5 {[%emt 0:00:00]} 47. Kf2 {[%emt 0:00:00]} Re5 {[%emt 0:00:00]} 48. Rc6+ {[%emt 0:00:00]} Kg7 {[%emt 0:00:00]} 49. Rc7 {[%emt 0:00:00]} Rb5 {[%emt 0:00:00]} 50. Bxf7 {[%emt 0:00:00]} Rb2+ {[%emt 0:00:00]} 51. Kg1 {[%emt 0:00:00]} Rb1+ {[%emt 0:00:00]} 52. Kg2 {[%emt 0:00:00]} Rb2+ {[%emt 0:00:00]} 53. Kh3 {[%emt 0:00:00]} g4+ {[%emt 0:00:00]} 54. Kxg4 {[%emt 0:00:00]} Rxh2 {[%emt 0:00:00]} 55. Bd5+ {[%emt 0:00:00]} Kf6 {[%emt 0:00:00]} 56. Bf3 {[%emt 0:00:00]} Ke5 {[%emt 0:00:00]} 57. Rc5+ {[%emt 0:00:00]} Kd4 {[%emt 0:00:00]} 58. Rd5+ {[%emt 0:00:00]} Ke3 {[%emt 0:00:00]} 59. Re5+ {[%emt 0:00:00]} Kd4 {[%emt 0:00:00]} 60. Re4+ {[%emt 0:00:00]} Kd3 {[%emt 0:00:00]} 61. Rxf4 {[%emt 0:00:00]} Ra2 {[%emt 0:00:00]} 62. Bd5 {[%emt 0:00:00]} Ra5 {[%emt 0:00:00]} 63. Be4+ {[%emt 0:00:00]} Ke3 {[%emt 0:00:00]} 64. Bf5 {[%emt 0:00:00]} Rc5 {[%emt 0:00:00]} 65. Rf3+ {[%emt 0:00:00]} Ke2 {[%emt 0:00:00]} 66. Kg3 {[%emt 0:00:00]} Re5 {[%emt 0:00:00]} 67. Rf2+ {[%emt 0:00:00]} Ke3 {[%emt 0:00:00]} 68. Bg4 {[%emt 0:00:00]} Rg5 {[%emt 0:00:00]} 69. Rf3+ {[%emt 0:00:00]} Ke4 {[%emt 0:00:00]} 70. Rf8 {[%emt 0:00:00]} Re5 {[%emt 0:00:00]} 71. Kf2 {[%emt 0:00:00]} Ra5 {[%emt 0:00:00]} 72. Bf3+ {[%emt 0:00:00]} Ke5 {[%emt 0:00:00]} 73. Kg3 {[%emt 0:00:00]} Ra6 {[%emt 0:00:00]} 74. Re8+ {[%emt 0:00:00]} Re6 {[%emt 0:00:00]} 75. Rd8 {[%emt 0:00:00]} Rd6 {[%emt 0:00:00]} 76. Ra8 {[%emt 0:00:00]} Rg6+ {[%emt 0:00:00]} 77. Kf2 {[%emt 0:00:00]} Rb6 {[%emt 0:00:00]} 78. Be2 {[%emt 0:00:00]} Rb3 {[%emt 0:00:00]} 79. Ra5+ {[%emt 0:00:00]} Kf4 {[%emt 0:00:00]} 80. Ra4+ {[%emt 0:00:00]} Ke5 {[%emt 0:00:00]} 81. Bf3 {[%emt 0:00:00]} Rb6 {[%emt 0:00:00]} 82. Re4+ {[%emt 0:00:00]} Kf5 {[%emt 0:00:00]} 83. Re8 {[%emt 0:00:00]} Kf4 {[%emt 0:00:00]} 84. Be2 {[%emt 0:00:00]} Rb3 {[%emt 0:00:00]} 85. Rf8+ {[%emt 0:00:00]} Ke5 {[%emt 0:00:00]} 86. Ke1 {[%emt 0:00:28]} Rb2 {[%emt 0:00:00]} 87. Rf3 {[%emt 0:00:30]} Ke4 {[%emt 0:00:00]} 88. Ra3 {[%emt 0:00:12]} Ke5 {[%emt 0:00:00]} 89. Kf2 {[%emt 0:00:08]} Rb4 {[%emt 0:00:00]} 90. Ra5+ {[%emt 0:00:46]} Kf4 {[%emt 0:00:00]} 91. Rh5 {[%emt 0:00:04]} Rb2 {[%emt 0:00:00]} 92. Rh4+ {[%emt 0:00:12]} Kg5 {[%emt 0:00:00]} 93. Rd4 {[%emt 0:00:14]} Kf5 {[%emt 0:00:00]} 94. Ke3 {[%emt 0:00:04]} Ke5 {[%emt 0:00:00]} 95. Re4+ {[%emt 0:00:04]} Kd5 {[%emt 0:00:00]} 96. Bc4+ {[%emt 0:00:16]} Kc5 {[%emt 0:00:00]} 97. Kd3 {[%emt 0:00:04]} Rh2 {[%emt 0:00:00]} 98. Re5+ {[%emt 0:00:25]} Kd6 {[%emt 0:00:00]} 99. Rd5+ {[%emt 0:00:05]} Kc6 {[%emt 0:00:00]} 100. Re5 {[%emt 0:00:26]} Kd6 {[%emt 0:00:00]} 101. Ke4 {Kxe5+} 1/2-1/2

[Event "WYCC U16 Girls 2019"]
[Site "Mumbai"]
[Date "2019.10.12"]
[Round "11.4"]
[White "Bommini Mounika Akshaya"]
[Black "Mahdian, Anousha"]
[Result "0-1"]
[ECO "E20"]
[WhiteElo "2017"]
[BlackElo "2103"]
[Annotator "ChessBase"]
[PlyCount "56"]
[EventDate "2019.10.02"]
[EventType "swiss"]
[EventCountry "IND"]
[SourceTitle "playchess.com"]
[Source "ChessBase"]
[SourceQuality "1"]
[TimeControl "5400+30"]

1. d4 {[%emt 0:00:00]} Nf6 {[%emt 0:00:00]} 2. c4 {[%emt 0:00:00]} e6 {[%emt 0:00:00]} 3. Nc3 {[%emt 0:00:00]} Bb4 {[%emt 0:00:00]} 4. f3 {[%emt 0:00:00]} c5 {[%emt 0:00:05]} 5. d5 {[%emt 0:00:05]} O-O {[%emt 0:00:12]} 6. e4 {[%emt 0:00:16]} b5 {[%emt 0:01:07]} 7. Bg5 {[%emt 0:09:26]} d6 {[%emt 0:11:21]} 8. Qb3 {[%emt 0:10:25]} Re8 {[%emt 0:11:32]} 9. O-O-O {[%emt 0:03:21]} bxc4 {[%emt 0:01:08]} 10. Bxc4 {[%emt 0:00:38]} e5 {[%emt 0:00:20]} 11. Nge2 {[%emt 0:06:46]} Nbd7 {[%emt 0:02:42]} 12. Nb5 {[%emt 0:08:45]} Nb6 {[%emt 0:03:56]} 13. Bd3 {[%emt 0:06:20]} Bd7 {[%emt 0:15:19]} 14. f4 {[%emt 0:07:01]} Rb8 {[%emt 0:18:38]} 15. Rdf1 {[%emt 0:18:05]} a6 {[%emt 0:01:29]} 16. fxe5 {[%emt 0:08:00]} Rxe5 {[%emt 0:03:10]} 17. Bxf6 {[%emt 0:01:16]} gxf6 {[%emt 0:00:07]} 18. Nbc3 {[%emt 0:01:07]} Bxc3 {[%emt 0:03:54]} 19. Nxc3 {[%emt 0:02:55]} Na4 {[%emt 0:03:01]} 20. Qa3 {[%emt 0:02:22]} Nxb2 {[%emt 0:01:41]} 21. Bxa6 {[%emt 0:01:57]} f5 {[%emt 0:00:30]} 22. Rf3 {[%emt 0:04:54]} Qg5+ {[%emt 0:03:01]} 23. Kc2 {[%emt 0:02:22]} Qxg2+ {[%emt 0:04:47]} 24. Be2 {[%emt 0:00:11]} Ba4+ {[%emt 0:03:56]} 25. Nxa4 {[%emt 0:02:20]} Qxe2+ {[%emt 0:00:02]} 26. Kc1 {[%emt 0:00:20]} Nxa4 {[%emt 0:00:25]} 27. Rg1+ {[%emt 0:01:16]} Kh8 {[%emt 0:00:30]} 28. Rb3 {[%emt 0:00:34]} Qc4+ {[%emt 0:00:31]} 0-1